Cogmind - Beta 14 @@@ ROGUE MODE // 2024.10.13 @ 06:22:21 Player: KURIIRI Result: Self-destructed Performance ------------- Evolutions (3) 1500 Regions Visited (11) 2200 Robots Destroyed (202) 1010 Value Destroyed (5382) 5382 Prototype IDs (43) 860 Alien Tech Used (0) 0 Bonus (1352) 1352 TOTAL SCORE: 12304 Bonus ------- High Alert Combat Kills 820 Follower Combat Kills 318 Aligned with FarCom 300 Friendly Fire -86 Cogmind --------- Core Integrity 673/700 Matter 288/300 Energy 325/325 System Corruption 5% Temperature Cool (0) Movement Treading (165) Location -7/Factory Parts ------- > --- POWER (1) -------- Antimatter Reactor > --- PROPULSION (4) --- Armored Treads Heavy Treads Improved VTOL Module > --- UTILITY (6) ------ Large Storage Unit Advanced Targeting Computer System Shield System Shield > --- WEAPON (2) ------- Advanced Beam Rifle Cooled Particle Cannon > --- INVENTORY (15) --- Light Nuclear Core Micro Nuclear Core Micro Nuclear Core Heavy Treads Cesium-ion Thruster Improved VTOL Module Medium Storage Unit Hacking Suite Improved Grenade Launcher Improved Datajack Peak State ------------ > --- POWER ------------ Antimatter Reactor > --- PROPULSION ------- Armored Treads Heavy Treads Improved VTOL Module > --- UTILITY ---------- Large Storage Unit Advanced Targeting Computer System Shield System Shield > --- WEAPON ----------- Advanced Beam Rifle Cooled Particle Cannon > --- INVENTORY -------- Light Nuclear Core Micro Nuclear Core Micro Nuclear Core Heavy Treads Cesium-ion Thruster Improved VTOL Module Medium Storage Unit Hacking Suite Improved Grenade Launcher Improved Datajack [Rating: 49] Favorites ----------- Power Ion Engine Engine Ion Engine Power Core Micro Nuclear Core Reactor Antimatter Reactor Propulsion Light Treads Treads Light Treads Wheel Armored Huge Wheel Flight Unit Improved VTOL Module Utility Large Storage Unit Device Improved Heat Sink Storage Large Storage Unit Processor Advanced Targeting Computer Hackware Hacking Suite Protection Light Armor Plating Weapon Flak Cannon Energy Gun Advanced Beam Rifle Energy Cannon Light EM Pulse Cannon Ballistic Gun Assault Rifle Ballistic Cannon Flak Cannon Launcher Improved Grenade Launcher Impact Weapon Hammer Slashing Weapon Scythe Build | -11 -10 -10 -9 -9 -9 -8 -8 -8 -7 -7 -7 ------- Run | Yrd Mat Min Mat Min Exi Min Mat Sto Fac Was Fac Slots Evolved 6 | . . . 2 . . . 2 . 2 . . Power . | . . . . . . . . . . . . Propulsion 2 | . . . 1 . . . 1 . . . . Utility 4 | . . . 1 . . . 1 . 2 . . Weapon . | . . . . . . . . . . . . Parts Attached 138 | 6 12 4 26 4 1 5 31 24 17 8 . Power 15 | 1 2 1 2 1 . . 3 2 1 2 . Engine 8 | 1 1 1 1 1 . . 2 1 . . . Core 6 | . 1 . 1 . . . 1 1 1 1 . Reactor 1 | . . . . . . . . . . 1 . Propulsion 30 | 2 . . 9 2 . . 6 6 3 2 . Treads 20 | 2 . . 9 1 . . 1 3 2 2 . Leg . | . . . . . . . . . . . . Wheel 8 | . . . . 1 . . 5 2 . . . Hover . | . . . . . . . . . . . . Flight 2 | . . . . . . . . 1 1 . . Utility 25 | 1 3 . 4 1 1 . 6 5 3 1 . Device 3 | . . . . 1 . . . 2 . . . Storage 4 | 1 2 . . . . . . . . 1 . Processor 1 | . . . . . . . 1 . . . . Hackware 4 | . . . 1 . . . 1 . 2 . . Protection 13 | . 1 . 3 . 1 . 4 3 1 . . Artifact . | . . . . . . . . . . . . Weapon 68 | 2 7 3 11 . . 5 16 11 10 3 . Energy Gun 12 | 1 . . 1 . . . 3 . 6 1 . Energy Cannon 13 | . 4 2 5 . . . . . 1 1 . Ballistic Gun 4 | 1 1 1 . . . . . 1 . . . Ballistic Cannon 20 | . . . 2 . . 2 7 6 3 . . Launcher 9 | . 1 . 1 . . 3 2 2 . . . Special Weapon . | . . . . . . . . . . . . Impact Weapon 3 | . 1 . 2 . . . . . . . . Slashing Weapon 7 | . . . . . . . 4 2 . 1 . Piercing Weapon . | . . . . . . . . . . . . Special Melee Weapon . | . . . . . . . . . . . . Unidentified Prototypes 11 | . . . 1 . . . 2 3 5 . . Parts Lost 17 | . 1 1 . . . . 6 2 4 3 . Power 4 | . 1 1 . . . . 1 1 . . . Propulsion 4 | . . . . . . . 1 1 1 1 . Utility 7 | . . . . . . . 4 . 1 2 . Weapon 2 | . . . . . . . . . 2 . . Highest Loss Streak 2 | . 1 1 . . . . 2 1 1 2 . To Critical Strikes 1 | . . . . . . . . . . 1 . Average Slot Usage (%) 90 | . 99 98 97 100 100 100 76 85 86 92 . Engine 5 | . 11 12 7 11 11 11 3 7 . . . Core 3 | . 2 . 3 . . . 5 . 7 5 . Treads 18 | . 28 28 31 22 22 22 1 13 18 20 . Wheel 6 | . . . . 11 11 11 16 11 3 . . Flight 1 | . . . . . . . . . 2 7 . Storage 9 | . 14 14 11 11 11 11 9 9 7 7 . Processor 3 | . . . . . . . 4 9 7 7 . Hackware 9 | . . . 10 11 11 11 3 9 16 19 . Protection 10 | . 13 14 11 9 11 11 14 8 6 5 . Energy Gun 3 | . . . . . . . 6 4 4 6 . Energy Cannon 8 | . 20 26 15 11 11 11 . . 6 6 . Ballistic Cannon 5 | . . . 6 11 11 5 9 11 2 . . Peak Build Rating 49 | 6 12 12 18 16 17 17 40 38 44 49 . Average Rating 27 | 4 9 9 14 15 16 17 34 34 40 43 . On Entrance 21 | . 6 12 10 16 15 17 17 34 36 44 49 Naked Turns . | . . . . . . . . . . . . Heaviest Build 45 | 14 34 34 38 38 38 38 44 42 42 45 . Greatest Support 90 | 40 40 40 60 40 40 40 56 40 60 90 . Greatest Overweight (x) 12 | . . . 12 . . . 1 11 7 . . Average Overweight (x) . | . . . . . . . . . . . . Largest Inventory Capacity 15 | 8 15 15 15 15 15 15 15 15 15 15 . Average Capacity 14 | 7 8 15 15 15 15 15 15 15 15 14 . Most Carried 15 | 3 10 10 15 15 15 15 15 15 15 15 . Average Carried 13 | 1 8 10 14 15 13 15 14 14 14 13 . Final Capacity 15 | 8 15 15 15 15 15 15 15 15 15 15 15 Final Carried 15 | 3 10 10 15 15 15 15 13 15 15 11 11 Class Distribution -------------------- 49% | Mutant 26% | Scavenger-Mutant 24% | Hacker-Mutant Dominant Class ---------------- Mutant | -10/Materials Mutant | -10/Mines Scavenger-Mutant | -9/Materials Scavenger-Mutant | -9/Mines Scavenger-Mutant | -9/Exiles Scavenger-Mutant | -8/Mines Mutant | -8/Materials Mutant | -8/Storage Hacker-Mutant | -7/Factory Hacker-Mutant | -7/Waste Hacker-Mutant | -7/Factory Resources | -11 -10 -10 -9 -9 -9 -8 -8 -8 -7 -7 -7 ----------- Run | Yrd Mat Min Mat Min Exi Min Mat Sto Fac Was Fac Matter Collected 3492 | 229 156 101 536 31 . 242 1057 756 252 132 . Remotely . | . . . . . . . . . . . . Salvage Created 6831 | . 736 144 1275 68 . 237 1115 1399 422 1435 . Parts 352 | . 43 10 82 4 . 26 80 66 22 19 . Haulers Intercepted 13 | . . . 3 . . . 3 5 2 . . Recyclers Shooed 6 | . . . 2 . . . 1 3 . . . Parts Field Recycled . | . . . . . . . . . . . . Retrieved Matter . | . . . . . . . . . . . . Parts Self-Destructed . | . . . . . . . . . . . . Prevented . | . . . . . . . . . . . . Kills | -11 -10 -10 -9 -9 -9 -8 -8 -8 -7 -7 -7 ------- Run | Yrd Mat Min Mat Min Exi Min Mat Sto Fac Was Fac Combat Hostiles Destroyed 142 | . 16 5 23 2 . 21 33 30 6 6 . Melee 2 | . 2 . . . . . . . . . . Guns 16 | . 1 1 . . . . 5 5 2 2 . Cannons 81 | . 9 3 23 2 . 2 20 16 2 4 . AOE 41 | . 4 1 . . . 19 8 9 . . . Classes Destroyed 16 | . 6 . 5 . . . 2 1 1 1 . Worker 8 | . 1 . 3 . . . 3 1 . . . Builder 9 | . 5 . 1 . . . . 2 1 . . Tunneler 2 | . . . 1 . . . 1 . . . . Hauler 13 | . . . 3 . . . 3 5 2 . . Recycler 8 | . 1 . 3 . . . 2 2 . . . Mechanic 3 | . . . . . . . . 3 . . . Operator 4 | . . . 1 . . . 1 1 1 . . Watcher 13 | . 3 . 3 . . . 5 2 . . . Swarmer 47 | . 6 3 4 . . 18 13 3 . . . Grunt 61 | . 10 2 13 2 . 3 11 17 3 . . Brawler 2 | . . . . . . . 1 1 . . . Duelist 2 | . . . 1 . . . . 1 . . . Sentry 20 | . . . 5 . . . 7 7 1 . . Hunter 3 | . . . . . . . 1 1 1 . . Programmer 1 | . . . . . . . . . 1 . . Compactor 6 | . . . . . . . . . . 6 . Best Kill Streak 10 | . 4 3 6 2 . 8 10 10 4 1 . Combat Bots Only 8 | . 3 3 4 2 . 8 7 6 3 1 . Max Kills in Single Turn 4 | . 2 1 2 1 . 4 3 3 2 1 . Gunslinging . | . . . . . . . . . . . . Exploded 4 | . 2 1 . . . 4 3 2 . . . Melee 1 | . 1 . . . . . . . . . . Uniques/NPCs Destroyed . | . . . . . . . . . . . . Combat | -11 -10 -10 -9 -9 -9 -8 -8 -8 -7 -7 -7 -------- Run | Yrd Mat Min Mat Min Exi Min Mat Sto Fac Was Fac Hostile Shots Fired 424 | . 58 17 82 4 . 34 135 73 19 2 . Missed 103 | . 10 5 19 . . 9 34 20 5 1 . Damage Taken 4701 | . 463 170 905 57 . 304 1412 884 258 248 . Core 638 | . 84 51 138 . . 51 168 119 16 11 . Absorbed by Shields . | . . . . . . . . . . . . Redirected to Shielding 106 | . 15 10 . . . . 81 . . . . Regen/Repaired (Parts) 402 | . . . . . . . . 273 . 129 . Core Remaining (%) 61 | 100 . 46 . . . 52 . 47 . . . Volleys Fired 515 | . 34 14 97 3 . 20 109 89 34 115 . Largest 2 | . 2 2 2 2 . 1 2 2 2 2 . Hottest 120 | . 112 112 120 107 . 68 105 105 91 91 . Shots Fired 869 | . 59 18 183 6 . 20 184 131 57 211 . Gun 229 | . 11 1 . . . . 55 47 19 96 . Cannon 596 | . 46 15 176 6 . 8 124 69 37 115 . Launcher 44 | . 2 2 7 . . 12 5 15 1 . . Special . | . . . . . . . . . . . . Kinetic 269 | . 11 1 57 3 . . 124 69 4 . . Thermal 477 | . . . 107 3 . 8 49 47 52 211 . Explosive 44 | . 2 2 7 . . 12 5 15 1 . . Electromagnetic 79 | . 46 15 12 . . . 6 . . . . Robot Hit Streak 35 | . 13 8 19 5 . 6 16 25 7 35 . Robot Miss Streak 7 | . 7 1 5 2 . 1 6 5 4 2 . Penetration Max . | . . . . . . . . . . . . Secondary Targets . | . . . . . . . . . . . . Shots Hit Robots 632 | . 43 12 115 4 . 8 138 103 32 177 . Core Hits 390 | 1 24 7 47 2 . 23 119 130 15 22 . Critical Kills 2 | . 1 . . . . . . . 1 . . Critical Parts Destroyed 2 | . 2 . . . . . . . . . . Critical Strikes 22 | . 3 1 1 1 . . 2 6 4 4 . Burn 14 | . . . . . . . 1 6 3 4 . Meltdown 1 | . . . . . . . . . 1 . . Blast 3 | . . . 1 1 . . 1 . . . . Corrupt 1 | . . 1 . . . . . . . . . Smash 3 | . 3 . . . . . . . . . . Melee Attacks 45 | . 26 . 7 . . . 7 4 . 1 . Impact 33 | . 26 . 7 . . . . . . . . Slashing 12 | . . . . . . . 7 4 . 1 . Piercing . | . . . . . . . . . . . . Sneak Attacks 9 | . 5 . . . . . 3 1 . . . Combat Hostiles . | . . . . . . . . . . . . Follow-up Attacks . | . . . . . . . . . . . . Damage Inflicted 18973 | 4 1442 327 2465 105 . 1206 4129 4139 895 4261 . Guns 3768 | . 42 16 . . . . 833 882 258 1737 . Cannons 9744 | . 691 241 2339 105 . 90 1716 1452 586 2524 . Explosions 4578 | . 324 70 75 . . 1116 1216 1726 51 . . Melee 777 | . 383 . . . . . 319 75 . . . Ramming 106 | 4 2 . 51 . . . 45 4 . . . Kinetic 4187 | . 42 16 843 42 . . 1716 1452 76 . . Thermal 8183 | . 69 . 1303 63 . 90 747 882 768 4261 . Explosive 4441 | . 255 70 40 . . 1116 1183 1726 51 . . Electromagnetic 1279 | . 691 241 228 . . . 119 . . . . Impact 383 | . 383 . . . . . . . . . . Slashing 394 | . . . . . . . 319 75 . . . Piercing . | . . . . . . . . . . . . Highest Corruption 5 | . . . . . . . . . . 5 . Average Corruption 5 | . . . . . . . . . . 5 . Corruption Purged . | . . . . . . . . . . . . Corruption Blocked . | . . . . . . . . . . . . Effects 20 | . . . . . . . . . . 20 . Message Errors 5 | . . . . . . . . . . 5 . Matter Fused 3 | . . . . . . . . . . 3 . Heat Flow Errors 5 | . . . . . . . . . . 5 . Energy Discharges 2 | . . . . . . . . . . 2 . Parts Rejected 1 | . . . . . . . . . . 1 . Data Loss (minor) 2 | . . . . . . . . . . 2 . Data Loss (major) 1 | . . . . . . . . . . 1 . Alerts 1 | . . . . . . . . . . 1 . Overload Shots . | . . . . . . . . . . . . Overflow Damage 461 | . 174 . 29 . . 30 169 59 . . . Projectiles 50 | . . . 29 . . . 15 6 . . . Explosions 188 | . 21 . . . . 30 84 53 . . . Melee 223 | . 153 . . . . . 70 . . . . Knockbacks 80 | . 1 . 6 1 . . 32 38 2 . . Impact 1 | . 1 . . . . . . . . . . Kinetic 75 | . . . 6 1 . . 31 35 2 . . Secondary 4 | . . . . . . . 1 3 . . . Self-Inflicted Damage 233 | . . 23 24 . . 81 85 20 . . . Shots 6 | . . 1 1 . . 2 1 1 . . . Rammed 17 | 2 . . 7 . . . 6 2 . . . Targets Rammed 20 | 2 1 . 9 . . . 6 2 . . . Kicked . | . . . . . . . . . . . . Crushed 3 | . 1 . 2 . . . . . . . . Highest Temperature 414 | . 220 204 414 198 . 96 312 333 192 268 . Average Temperature 100 | . 75 97 135 104 . 45 81 95 63 74 . Received Heat Transfer 1536 | . 135 63 369 51 . 36 423 315 144 . . Effects 16 | . . . 9 . . . 2 5 . . . Shutdowns 2 | . . . 1 . . . . 1 . . . Energy Bleed 5 | . . . 3 . . . 2 . . . . Interference 5 | . . . 2 . . . . 3 . . . Short Circuit 3 | . . . 2 . . . . 1 . . . Damage (minor) 1 | . . . 1 . . . . . . . . Siege Activations . | . . . . . . . . . . . . Robots Corrupted 2 | . 2 . . . . . . . . . . Combat Hostiles . | . . . . . . . . . . . . Parts Fried 15 | . 12 2 . . . . 1 . . . . Impact Corruptions 5 | . 5 . . . . . . . . . . Robots Melted 3 | . . . . . . . . 1 2 . . Combat Hostiles 2 | . . . . . . . . . 2 . . Parts Melted 23 | . . . 7 . . . 1 4 10 1 . Heat Transferred 14976 | . 100 . 2764 111 . 148 1382 2035 1332 7104 . Parts Sabotaged . | . . . . . . . . . . . . Parts Stolen . | . . . . . . . . . . . . Parts Stripped . | . . . . . . . . . . . . Power Chain Reactions 4 | . 2 . 1 . . . 1 . . . . Alert | -11 -10 -10 -9 -9 -9 -8 -8 -8 -7 -7 -7 ------- Run | Yrd Mat Min Mat Min Exi Min Mat Sto Fac Was Fac Peak Influence 1052 | . 249 242 377 149 . 503 1052 967 725 138 . Initial 443 | . . 82 94 99 . . 172 443 439 136 . Average 356 | . 126 177 224 138 . 312 652 594 527 35 . Maximum Alert Level 3 | . 1 1 1 . . 2 3 3 3 . . Low Security (%) 35 | 100 78 72 37 100 . 8 1 . . 100 . Level 1 21 | . 21 27 62 . . 84 13 . 3 . . Level 2 34 | . . . . . . 7 58 85 92 . . Level 3 8 | . . . . . . . 26 14 3 . . Level 4 . | . . . . . . . . . . . . Level 5 . | . . . . . . . . . . . . High Security . | . . . . . . . . . . . . Max Security . | . . . . . . . . . . . . Squads Dispatched 22 | . 3 . 5 . . . 4 7 3 . . Investigation 10 | . 3 . 3 . . . 2 1 1 . . Extermination . | . . . . . . . . . . . . Reinforcement 8 | . . . 2 . . . 1 3 2 . . Assault 3 | . . . . . . . . 3 . . . Garrison 1 | . . . . . . . 1 . . . . Intercept . | . . . . . . . . . . . . Searches Triggered . | . . . . . . . . . . . . Construction Impeded 1 | . . . . . . . . 1 . . . Haulers Reinforced 2 | . . . . . . . . . 2 . . Active Scanning Responses . | . . . . . . . . . . . . Cargo Convoy Interrupts . | . . . . . . . . . . . . Stealth | -11 -10 -10 -9 -9 -9 -8 -8 -8 -7 -7 -7 --------- Run | Yrd Mat Min Mat Min Exi Min Mat Sto Fac Was Fac Distress Signals 5 | . . . 3 . . . 1 1 . . . Communications Jammed . | . . . . . . . . . . . . Distress Signals . | . . . . . . . . . . . . Times Spotted 200 | . 21 5 36 2 . 19 49 41 11 16 . Peak Tracking Total 8 | . 3 3 5 2 . 8 5 5 3 5 . Tactical Retreats 11 | . . . 5 . . . 3 . . 3 . Traps | -11 -10 -10 -9 -9 -9 -8 -8 -8 -7 -7 -7 ------- Run | Yrd Mat Min Mat Min Exi Min Mat Sto Fac Was Fac Traps Triggered 6 | . . . . . . . . 4 2 . . Indirectly . | . . . . . . . . . . . . Trap Hack Attempts . | . . . . . . . . . . . . Triggered . | . . . . . . . . . . . . Disarmed . | . . . . . . . . . . . . Reprogrammed . | . . . . . . . . . . . . Reused . | . . . . . . . . . . . . Traps Extracted . | . . . . . . . . . . . . Installed . | . . . . . . . . . . . . Triggered . | . . . . . . . . . . . . Machines | -11 -10 -10 -9 -9 -9 -8 -8 -8 -7 -7 -7 ---------- Run | Yrd Mat Min Mat Min Exi Min Mat Sto Fac Was Fac Machines Disabled 21 | . 1 . 6 . . 5 2 5 2 . . Max in Single Turn 1 | . 1 . 1 . . 1 1 1 1 . . Garrison Access 3 | . . . . . . . 1 1 1 . . Machines Repaired . | . . . . . . . . . . . . Machines Dismantled . | . . . . . . . . . . . . Machines Sabotaged . | . . . . . . . . . . . . Overloaded Fab Kills . | . . . . . . . . . . . . Hacking | -11 -10 -10 -9 -9 -9 -8 -8 -8 -7 -7 -7 --------- Run | Yrd Mat Min Mat Min Exi Min Mat Sto Fac Was Fac Machines Accessed 39 | . 7 . 6 . 2 . 9 12 3 . . Terminals 31 | . 7 . 6 . . . 7 9 2 . . Fabricators . | . . . . . . . . . . . . Repair Stations 1 | . . . . . . . . 1 . . . Recycling Units 2 | . . . . . . . 1 1 . . . Scanalyzers . | . . . . . . . . . . . . Garrison Access 3 | . . . . . . . 1 1 1 . . Total Hacks 116 | . 26 . 23 . 2 . 26 29 10 . . Successful 69 | . 16 . 12 . 2 . 11 22 6 . . Failed 44 | . 9 . 10 . . . 14 7 4 . . Catastrophic 7 | . 1 . . . . . 3 2 1 . . Database Lockouts 3 | . 1 . 1 . . . 1 . . . . Manual 75 | . 19 . 17 . 1 . 19 15 4 . . Terminals 95 | . 26 . 23 . . . 21 17 8 . . Fabricators . | . . . . . . . . . . . . Repair Stations 7 | . . . . . . . . 7 . . . Recycling Units 6 | . . . . . . . 2 4 . . . Scanalyzers . | . . . . . . . . . . . . Garrison Access 6 | . . . . . . . 3 1 2 . . Terminal Hacks 36 | . 9 . 9 . 2 . 4 10 2 . . Record 1 | . . . . . 1 . . . . . . Part Schematic 1 | . . . . . . . . . 1 . . Robot Analysis 7 | . 3 . 2 . . . 1 1 . . . Prototype ID Bank 6 | . 2 . 1 . . . 1 1 1 . . Open Door 4 | . . . . . . . . 4 . . . Terminal Index 3 | . 1 . . . . . 1 1 . . . Unreport Threat 4 | . . . 2 . . . . 2 . . . Locate Traps 6 | . 3 . 3 . . . . . . . . Zone Layout 3 | . . . 1 . . . 1 1 . . . Derelict Proto ID Bank 1 | . . . . . 1 . . . . . . Fabricator Hacks . | . . . . . . . . . . . . Repair Station Hacks 6 | . . . . . . . . 6 . . . Scan Component 3 | . . . . . . . . 3 . . . Repair 3 | . . . . . . . . 3 . . . Recycling Unit Hacks 1 | . . . . . . . . 1 . . . Retrieve Components 1 | . . . . . . . . 1 . . . Scanalyzer . | . . . . . . . . . . . . Garrison Access Hacks 2 | . . . . . . . . 1 1 . . Seal Access 2 | . . . . . . . . 1 1 . . Unauthorized Hacks 23 | . 6 . 3 . . . 7 4 3 . . Terminals 19 | . 6 . 3 . . . 5 2 3 . . Assimilate 2 | . . . . . . . 2 . . . . Botnet 12 | . 3 . 2 . . . 3 2 2 . . Detonate 1 | . 1 . . . . . . . . . . Operators 4 | . 2 . 1 . . . . . 1 . . Fabricators . | . . . . . . . . . . . . Repair Stations . | . . . . . . . . . . . . Recycling Units 3 | . . . . . . . 1 2 . . . Reject 1 | . . . . . . . . 1 . . . Mask 2 | . . . . . . . 1 1 . . . Scanalyzers . | . . . . . . . . . . . . Garrison Access 1 | . . . . . . . 1 . . . . Jam 1 | . . . . . . . 1 . . . . Data Cores Recovered 1 | . . . . . . . . . 1 . . Used . | . . . . . . . . . . . . Hacking Detections 32 | . 7 . 6 . . . 9 7 3 . . Full Trace Events 14 | . 4 . 6 . . . 1 2 1 . . Feedback Events . | . . . . . . . . . . . . Feedback Blocked . | . . . . . . . . . . . . Robot Schematics Acquired . | . . . . . . . . . . . . Robots Built . | . . . . . . . . . . . . Authchips . | . . . . . . . . . . . . Time . | . . . . . . . . . . . . Total Robot Build Rating . | . . . . . . . . . . . . Part Schematics Acquired 1 | . . . . . . . . . 1 . . Parts Built . | . . . . . . . . . . . . Authchips . | . . . . . . . . . . . . Time . | . . . . . . . . . . . . Total Part Build Rating . | . . . . . . . . . . . . Parts Repaired 3 | . . . . . . . . 3 . . . Time 125 | . . . . . . . . 125 . . . Parts Recycled . | . . . . . . . . . . . . Recycled Matter . | . . . . . . . . . . . . Retrieved Matter . | . . . . . . . . . . . . Retrieved Components . | . . . . . . . . . . . . Parts Scanalyzed . | . . . . . . . . . . . . Part Schematics Acquired . | . . . . . . . . . . . . Parts Damaged . | . . . . . . . . . . . . Bothacking | -11 -10 -10 -9 -9 -9 -8 -8 -8 -7 -7 -7 ------------ Run | Yrd Mat Min Mat Min Exi Min Mat Sto Fac Was Fac Used RIF Installer . | . . . . . . . . . . . . Robots Hacked . | . . . . . . . . . . . . Non-combat . | . . . . . . . . . . . . Combat . | . . . . . . . . . . . . Robot Hacks Applied . | . . . . . . . . . . . . Relay Couplers Released . | . . . . . . . . . . . . Fabnet Peak Effective % . | . . . . . . . . . . . . Robots Rewired . | . . . . . . . . . . . . Allies Hacked . | . . . . . . . . . . . . Hacks Repelled . | . . . . . . . . . . . . Allies | -11 -10 -10 -9 -9 -9 -8 -8 -8 -7 -7 -7 -------- Run | Yrd Mat Min Mat Min Exi Min Mat Sto Fac Was Fac Total Allies 23 | . . . . 2 . . 1 2 . 18 . Largest Group 18 | . . . . 2 2 . 1 2 2 18 . Highest-Rated Group 434 | . . . . 49 49 . 10 62 62 434 . Highest-Rated Ally 35 | . . . . 31 31 . 10 31 31 35 . Total Orders 8 | . . . . . . . . 8 . . . STAY 4 | . . . . . . . . 4 . . . FOLLOW 4 | . . . . . . . . 4 . . . Ally Attacks 87 | . . . . . . . . 20 49 18 . Total Damage 1424 | . . . . . . . . 276 618 530 . Kills 11 | . . . . . . . . 4 5 2 . Allies Corrupted . | . . . . . . . . . . . . Allies Melted . | . . . . . . . . . . . . Intel | -11 -10 -10 -9 -9 -9 -8 -8 -8 -7 -7 -7 ------- Run | Yrd Mat Min Mat Min Exi Min Mat Sto Fac Was Fac Robot Analysis Total 7 | . 3 . 2 . . . 1 1 . . . Derelict Logs Recovered 1 | . . 1 . . . . . . . . . Drone Launches . | . . . . . . . . . . . . Drone Recoveries . | . . . . . . . . . . . . Exploration | -11 -10 -10 -9 -9 -9 -8 -8 -8 -7 -7 -7 ------------- Run | Yrd Mat Min Mat Min Exi Min Mat Sto Fac Was Fac Turns Passed 10019 | 104 951 283 1735 82 369 535 1961 1566 830 1603 . Spaces Moved 5081 | 59 450 153 728 41 225 305 1263 830 498 529 . Core 9 | 4 . . 1 . . . . 4 . . . Treads 2810 | 55 450 153 727 41 225 305 4 80 241 529 . Legs . | . . . . . . . . . . . . Wheels 2261 | . . . . . . . 1259 746 256 . . Hover . | . . . . . . . . . . . . Flight 1 | . . . . . . . . . 1 . . Fastest Speed 50 | 50 160 160 160 160 160 160 90 90 115 160 . Average Speed 136 | 152 160 160 160 160 160 160 101 114 139 163 . Slowest Speed 650 | 160 160 160 650 160 160 160 160 600 585 165 . Overloaded Moves . | . . . . . . . . . . . . Propulsion Burnouts . | . . . . . . . . . . . . Robots Hopped . | . . . . . . . . . . . . Cave-ins Triggered 1 | . . . . . . . . . . 1 . Exploration Rate (%) 52 | 6 62 45 69 12 58 62 72 89 19 86 . Regions Visited 11 Branch Regions 5 Pre-discovered Areas 1 | . . . . . 1 . . . . . . Known Exits Taken 1 | . . . . . . . 1 . . . . Unknown Exits Taken 8 | 1 1 1 1 1 1 1 . 1 . . . Scrap Searched 1 | . . . . . . 1 . . . . . Spaces Dug 65 | . 7 8 17 . . . 1 23 2 7 . Terrain Destroyed 486 | . 24 21 99 . . 115 108 100 9 10 . Melee 16 | . 7 . 4 . . . 1 3 . 1 . Projectile 43 | . . . 1 . . 1 29 . 3 9 . AOE 427 | . 17 21 94 . . 114 78 97 6 . . Terrain Rammed . | . . . . . . . . . . . . Walls Destroyed . | . . . . . . . . . . . . Machines Disabled . | . . . . . . . . . . . . Actions | -11 -10 -10 -9 -9 -9 -8 -8 -8 -7 -7 -7 --------- Run | Yrd Mat Min Mat Min Exi Min Mat Sto Fac Was Fac Total 7216 | 69 579 171 1095 51 237 330 1753 1306 573 1052 . Wait 1250 | . 34 1 200 3 . 1 296 311 12 392 . Move 5071 | 59 449 152 727 40 224 304 1262 829 498 527 . Hop . | . . . . . . . . . . . . Pick Up 61 | 3 12 . 12 . 6 . 15 5 3 5 . Fast Attach 58 | 6 3 1 9 . . . 15 9 10 5 . Attach 6 | . . . . . . . 3 1 1 1 . Detach 4 | . 1 . . . . . . 2 . 1 . Swap 76 | . 9 3 17 4 1 5 13 14 8 2 . Drop 78 | . 10 . 17 1 6 . 27 8 7 2 . Fire 515 | . 34 14 97 3 . 20 109 89 34 115 . Melee 45 | . 26 . 7 . . . 7 4 . 1 . Ram 8 | . . . . . . . 6 2 . . . Kick . | . . . . . . . . . . . . Crush 11 | 1 1 . 9 . . . . . . . . Escape Stasis 33 | . . . . . . . . 32 . 1 . Rewire . | . . . . . . . . . . . . Trap . | . . . . . . . . . . . . Miscellaneous . | . . . . . . . . . . . . Route ------- -11/Scrapyard -10/Materials (discovered 2 exits: *Mat / [*Min]) -10/Mines -9/Materials (discovered 4 exits: *Mat x2 / [*Min x2]) -9/Mines -9/Exiles -8/Mines -8/Materials (discovered 3 exits: *Fac / *Sto x2) -8/Storage (discovered 2 exits: *Fac / [*Rec]) -7/Factory -7/Waste -7/Factory History --------- Turn | Location | Event 3 | -11/Scrapyard | Discovered new exit (range 16) 105 | -11/Scrapyard | Entered Materials 330 | -10/Materials | Build established: Mutant 773 | -10/Materials | Central database locked down 800 | -10/Materials | Discovered new exit (range 5) 992 | -10/Materials | Discovered new exit (range 10) 1056 | -10/Materials | Entered Mines 1067 | -10/Mines | Core integrity fell below 50% 1295 | -10/Mines | Discovered new exit (range 12) 1339 | -10/Mines | Entered Materials 1339 | -9/Materials | Evolved 2 slots: Propulsion x1, Utility x1 1617 | -9/Materials | Discovered new exit (range 16) 1832 | -9/Materials | Build established: Scavenger-Mutant 2260 | -9/Materials | Discovered new exit (range 15) 2902 | -9/Materials | Discovered new exit (range 16) 2956 | -9/Materials | Central database locked down 3053 | -9/Materials | Discovered new exit (range 10) 3074 | -9/Materials | Entered Mines 3134 | -9/Mines | Assembled infested the area 3149 | -9/Mines | Discovered new exit (range 5) 3156 | -9/Mines | Entered Exiles 3156 | -9/Exiles | Accompanied by 2 allies 3186 | -9/Exiles | Led the pair of lost Derelicts to a safe place 3203 | -9/Exiles | Met 8R-AWN 3229 | -9/Exiles | Met EX-HEX 3272 | -9/Exiles | Met EX-BIN 3293 | -9/Exiles | Aligned with FarCom system 3295 | -9/Exiles | Given EX-Vault access code 3335 | -9/Exiles | Opened EX-Vault 3343 | -9/Exiles | Found Cloak of Protection 3346 | -9/Exiles | Found 0b10 Alert Chip 3380 | -9/Exiles | Warned to stay clear of 0b10 Research branches 3433 | -9/Exiles | Learned location of Zion (-6) 3508 | -9/Exiles | Discovered new exit (range 14) 3525 | -9/Exiles | Left Exiles lab with 0b10 Alert Chip 3525 | -9/Exiles | Entered Mines 3556 | -8/Mines | Destroyed 8 combat bots 4010 | -8/Mines | Discovered new exit (range 15) 4060 | -8/Mines | Entered Materials 4060 | -8/Materials | Evolved 2 slots: Propulsion x1, Utility x1 4061 | -8/Materials | Identified exit to Storage 4428 | -8/Materials | Garrison activated, responded to threat 4512 | -8/Materials | Build established: Mutant 4544 | -8/Materials | Central database locked down 4567 | -8/Materials | Discovered exit to Storage (range 7) 5097 | -8/Materials | Discovered new exit (range 5) 5791 | -8/Materials | Destroyed 7 combat bots 6021 | -8/Materials | Entered Storage 6021 | -8/Storage | Accompanied by 1 ally 6182 | -8/Storage | Repaired Imp. Grenade Launcher 6421 | -8/Storage | First assault squad dispatched 6463 | -8/Storage | Repaired Lgt. Armor Plating 6608 | -8/Storage | Repaired Broken Arm. Huge Wheel 6687 | -8/Storage | Discovered new exit (range 13) 6777 | -8/Storage | Core integrity fell below 50% 7131 | -8/Storage | Discovered new exit (range 7) 7417 | -8/Storage | Used back door to open Recycling access 7432 | -8/Storage | Met a pair of Derelict thieves 7587 | -8/Storage | Entered Factory 7587 | -7/Factory | Accompanied by 2 allies 7587 | -7/Factory | Evolved 2 slots: Utility x2 7891 | -7/Factory | Build established: Hacker-Mutant 8417 | -7/Factory | Sucked down chute 8417 | -7/Factory | Entered Waste 8443 | -7/Waste | Spotted C-40 Crusher 8443 | -7/Waste | Spotted C-40 Crusher 8494 | -7/Waste | Spotted C-40 Crusher 8499 | -7/Waste | Spotted C-40 Crusher 8531 | -7/Waste | Spotted C-40 Crusher 8593 | -7/Waste | Destroyed C-40 Crusher 8613 | -7/Waste | Spotted C-40 Crusher 9023 | -7/Waste | Destroyed C-40 Crusher 9311 | -7/Waste | Crushed by falling debris 9479 | -7/Waste | Destroyed C-40 Crusher 9517 | -7/Waste | Destroyed C-40 Crusher 9597 | -7/Waste | Crushed by Compactor (1 part destroyed, 2 dropped) 9704 | -7/Waste | Destroyed C-40 Crusher 9760 | -7/Waste | Warlord forces began an assault 9789 | -7/Waste | Destroyed C-40 Crusher 9820 | -7/Waste | Lost 3 allies 9991 | -7/Waste | Discovered new exit (range 12) 10020 | -7/Waste | Entered Factory 10020 | -7/Factory | Accompanied by 15 allies 10020 | -7/Factory | Self-destructed Last Messages --------------- 09788_ 4F-497(s) destroyed. 09789_ 33-A95(d) Rocket Launcher crushed. 09789_ 33-A95(d) Airjet crushed. 09789_ 33-A95(d) destroyed. 09789_ C-40 Crusher destroyed. 09803_ ZO-1D5(m) repairs Arm. Treads. 09807_ ZO-1D5(m) repairs Lrg. Storage Unit. 09822_ System corrupted: Heat flow error (+152). 09827_ Acquired 15 matter. 09830_ Acquired Cesium-ion Thruster. 09851_ System corrupted: Energy discharge (-120). 09879_ System corrupted: Matter fused (-7). 09927_ System corrupted: Heat flow error (+108). 09943_ System corrupted: Heat flow error (+270). 09989_ #WGDF:T22CLOVQ5CAN3E8K8Y|WG0Y9UMP2GA#PJ 09991_ EXIT=FOUND LOCATION=UNKNOWN GOAL=ESCAPE 10020_ Receiving FarCom transmissions... Map ----- +----------------------------------------------------+ | ????????????????????????????????????????????? | | ????????????????????????????????????????????? | | ????????????????????????????????????????????? | | ????????????????????????????????????????????? | | ????????????????????????????????????????????? | | ????????????????????????????????????????????? | | ????????????????????????????????????????????? | | ????????????????????????????????????????????? | | ????????????????????????????????????????????? | | ????????????????????????????????????????????? | | ????????????????????????? ????????????????? | | ????????????????????????? ??????????????? | | ????????????????????????? #?????????????? | | ????????????????????????? #?????????????? | | ????????????????????????? #?????????????? | | ????????????????????????? #?????????????? | | ????????????????????????? #??##?????????? | | ????????????????????????# #? ###???????? | | ????????????????????????# # ????????? | | ????????????????????????+ # #?????????? | | ????????????????????????# b #??????????? | | ????????????????????????# #??????????? | | ??????????????????????### d #####??????? | | ??????????????????????# s g #??????? | | ??????????????????????# ssg s #??????? | | ??????????????????????# g@mg +??????? | | ??????????????????????# g m g #??????? | | ??????????????????????# b #??????? | | ??????????????????????#####+######## #??????? | | ????????????????????????????????????????????? | | ????????????????????????????????????????????? | | ?????????g??????????????????????????????????? | | ????????????????????????????????????????????? | | ?????????g??????????????????????????????????? | | ????????????????????????????????????????????? | | ????????????????????????????????????????????? | | ????????????????????????????????????????????? | | ????????????????????????????????????????????? | | ????????????????????????????????????????????? | | ????????????????????????????????????????????? | | ????????????????????????????????????????????? | | ????????????????????????????????????????????? | | ????????????????????????????????????????????? | | ????????????????????????????????????????????? | | ????????????????????????????????????????????? | | ????????????????????????????????????????????? | | | | | | | | | +----------------------------------------------------+ Best States ------------- Heat Dissipation 45 Energy Generation 21 Energy Capacity 325 Matter Stores 300 Matter Capacity 300 Sight Range 16 Terrain Scan Density 10 Armor Coverage 150 Core Shielding 20 Weapon Shielding 66 Evasion (%) 42 Targeting Accuracy 8 Recoil Reduction 3 Offensive Hacking 10 Defensive Hacking 20 Authchip Count 2 Item Schematics ----------------- Greatsword | -7/Factory | Hacked Robot Schematics ------------------ None Fabricated ------------ Nothing Alien Tech Used ----------------- None Achievements -------------- None Challenges ------------ None Game ------ Seed InsulationCloakingCarapace Manual? 0 Play Time 01:33:56 Cumulative 117.9 hours Start 2024.10.12 @ 05:34:58 End 2024.10.13 @ 06:22:21 Sessions 9 Manual Loads 0 Difficulty Rogue Special Mode None Game No. 75 Rogue 39 Adventurer 36 Explorer 0 Win Type - Total 2 Types 2/0/0/0/0/0/0/0/0 Lore% 52 Gallery% 58 Achievement% 51 Wizard Run 0 Options --------- Layout 1 ASCII 0 Keyboard 0 Movement Numpad Keybinds 0 Fullscreen 1 Font 48/Smallcaps Map View 50x35 Zoom Use 0% Tactical HUD 1 Map Filters NONE Filters NONE Steam 1 RUN: 0a59b2ce-3a44-4ffd-9f7b-e555fc08cbe3